bitfinex/quotes_BTCUSD_20241001
["timestamp","ask_amount","ask_price","bid_price","bid_amount"]
[1727779100784,0.44014456,63975.0,63974.0,1.2949915]
[1727779103235,0.44014456,63975.0,63974.0,1.29513094]
[1727779103429,0.44014456,63975.0,63974.0,1.29510922]
[1727779107283,0.44014456,63975.0,63974.0,1.28188309]
[1727779107451,0.44014456,63975.0,63974.0,1.29509655]
[1727779114559,0.44014456,63975.0,63974.0,1.29511165]
[1727779117800,0.44014456,63975.0,63974.0,1.28188309]
[1727779118223,0.44014456,63975.0,63974.0,1.29511229]
[1727779118449,0.44014456,63975.0,63974.0,1.29532592]
[1727779120932,0.44014456,63975.0,63974.0,1.28209672]
[1727779121357,0.44014456,63975.0,63974.0,1.29532393]
[1727779122656,0.079424,63988.0,63987.0,0.005]
[1727779122875,0.002048,63999.0,63987.0,0.70716412]
[1727779122876,0.177,63995.0,63987.0,0.70716412]
[1727779123127,0.177,63995.0,63992.0,0.40273322]
[1727779123372,0.177,63995.0,63992.0,0.57241823]
[1727779123616,0.177,63995.0,63992.0,0.79782581]
[1727779124319,0.177,63995.0,63992.0,0.7845986]
[1727779125163,0.179348,63999.0,63992.0,0.81253921]
[1727779125434,0.082948,63999.0,63992.0,0.81853921]
[1727779125642,0.082948,63999.0,63998.0,0.41372913]
[1727779125864,0.002048,63999.0,63998.0,0.80680223]
[1727779126956,0.002048,63999.0,63998.0,0.81280223]
[1727779128669,0.002048,63999.0,63998.0,0.80680223]
[1727779129107,0.002048,63999.0,63998.0,0.83380223]
[1727779129416,0.002048,63999.0,63998.0,0.83580223]
[1727779129631,0.002048,63999.0,63998.0,0.85417223]
[1727779129871,0.002048,63999.0,63998.0,0.88217223]
[1727779130798,0.002048,63999.0,63998.0,0.86896451]
[1727779131236,0.002048,63999.0,63998.0,0.85496451]
[1727779131456,0.002048,63999.0,63998.0,1.07581471]
[1727779131673,0.001648,64002.0,64001.0,0.29325791]
[1727779131935,0.001648,64002.0,64001.0,0.80987983]
[1727779132126,0.001648,64002.0,64001.0,0.80675557]
[1727779132337,0.001648,64002.0,64001.0,0.80875557]
[1727779132576,0.001648,64002.0,64001.0,0.94961117]
[1727779132790,0.001648,64002.0,64001.0,0.86498184]
[1727779132999,0.001648,64002.0,64001.0,0.86370697]
[1727779133490,0.001648,64002.0,64001.0,0.8214807]
[1727779133700,0.000824,64005.0,64003.0,0.29525291]
[1727779133927,0.000824,64005.0,64003.0,0.69213567]
[1727779134150,0.000824,64005.0,64003.0,0.82928477]
[1727779134367,0.000824,64005.0,64003.0,0.68901148]
[1727779135038,0.000824,64005.0,64003.0,0.70301148]
[1727779135474,0.000824,64005.0,64003.0,0.70384342]
[1727779135688,0.000824,64005.0,64003.0,0.71701148]
[1727779136540,0.000824,64005.0,64003.0,0.70384342]
[1727779136755,0.000824,64005.0,64003.0,0.71826825]
[1727779138528,0.000824,64005.0,64003.0,0.70426825]
[1727779138741,0.000824,64005.0,64003.0,0.69026825]
[1727779138960,0.000824,64005.0,64003.0,0.70426825]
[1727779139185,0.000824,64005.0,64003.0,0.71826825]
[1727779141232,0.000824,64005.0,64003.0,0.71758673]
[1727779142111,0.000824,64005.0,64003.0,0.72384573]
[1727779142567,0.000824,64005.0,64003.0,0.72184573]
[1727779142796,0.076924,64005.0,64003.0,0.39364122]
[1727779143010,0.076924,64005.0,64003.0,0.190501]
[1727779143011,0.17215,64004.0,64003.0,0.190501]
[1727779143714,0.17215,64004.0,64003.0,0.30896522]
[1727779143962,0.17215,64004.0,64003.0,0.45142302]
[1727779144192,0.17215,64004.0,64003.0,0.55142302]
[1727779144410,0.17215,64004.0,64003.0,0.56042302]
[1727779144866,0.17215,64004.0,64003.0,0.53742302]
[1727779145064,0.17215,64004.0,64003.0,0.54842302]
[1727779145514,0.17215,64004.0,64003.0,0.53742302]
[1727779145753,0.17215,64004.0,64003.0,0.54642302]
[1727779145972,0.17215,64004.0,64003.0,0.55342302]
[1727779148452,0.07775,64004.0,64003.0,0.58142302]
[1727779148681,0.00165,64004.0,64003.0,0.58142302]
[1727779148897,0.00165,64004.0,64003.0,0.62811525]
[1727779149571,0.00165,64004.0,64003.0,0.63883929]
[1727779150961,0.00165,64004.0,64003.0,0.63884272]
[1727779151423,0.00165,64004.0,64003.0,0.65196692]
[1727779152661,0.00165,64004.0,64003.0,0.59214706]
[1727779152913,0.00165,64004.0,64003.0,0.47368284]
[1727779153176,0.00165,64004.0,64003.0,0.59214706]
[1727779153422,0.00165,64004.0,64003.0,0.60533369]
[1727779153993,0.00165,64004.0,64003.0,0.65202935]
[1727779154233,0.09185,64004.0,64003.0,0.65202935]
[1727779155230,0.09185,64004.0,64003.0,0.60533369]
[1727779155676,0.09185,64004.0,64003.0,0.63885739]
[1727779156404,0.09185,64004.0,64003.0,0.60530263]
[1727779158324,0.09185,64004.0,64003.0,0.67536813]
[1727779159263,0.09185,64004.0,64003.0,0.88643321]
[1727779159906,0.09185,64004.0,64003.0,0.89959174]
[1727779160357,0.00165,64004.0,64003.0,0.82952624]
[1727779161238,0.00165,64004.0,64003.0,0.92294691]
[1727779161467,0.00165,64004.0,64003.0,0.82952624]
[1727779161682,0.00165,64004.0,64003.0,0.88587592]
[1727779162574,0.00165,64004.0,64003.0,0.89903411]
[1727779162790,0.00165,64004.0,64003.0,0.88587558]
[1727779164339,0.00165,64004.0,64003.0,0.66165493]
[1727779167157,0.00165,64004.0,64003.0,0.60530525]
[1727779169056,0.00165,64004.0,64003.0,0.61848435]
[1727779169520,0.00165,64004.0,64003.0,0.60532616]
[1727779169948,0.00165,64004.0,64003.0,0.64849984]
[1727779170185,0.00165,64004.0,64003.0,0.66168069]
[1727779172421,0.00165,64004.0,64003.0,0.66166931]
[1727779172845,0.00165,64004.0,64003.0,0.67068022]
[1727779176648,0.00165,64004.0,64003.0,0.89513535]
[1727779177904,0.00165,64004.0,64003.0,0.89713535]
[1727779179483,0.00165,64004.0,64003.0,0.88396588]
[1727779179701,0.00165,64004.0,64003.0,0.76350166]
[1727779179929,0.00165,64004.0,64003.0,0.89516121]
[1727779182331,0.00165,64004.0,64003.0,0.90831022]
[1727779182560,0.00165,64004.0,64003.0,0.89511489]
[1727779182775,0.00165,64004.0,64003.0,0.90828021]
[1727779183204,0.00165,64004.0,64003.0,1.11590284]
[1727779185448,0.00165,64004.0,64003.0,1.10273752]
[1727779186307,0.00165,64004.0,64003.0,1.11590235]
[1727779188606,0.00165,64004.0,64003.0,1.10273752]
[1727779189333,0.00165,64004.0,64003.0,1.11590278]
[1727779189777,0.00165,64004.0,64003.0,1.22249432]
[1727779191180,0.00165,64004.0,64003.0,1.20932906]
[1727779191600,0.00165,64004.0,64003.0,1.19616361]
[1727779194867,0.00165,64004.0,64003.0,1.28976361]
[1727779195079,0.000824,64005.0,64004.0,0.27025091]
[1727779195308,0.000824,64005.0,64004.0,1.04783859]
[1727779195510,0.000824,64005.0,64004.0,1.0553942]
[1727779196156,0.000824,64005.0,64004.0,1.0633942]
[1727779196604,0.000824,64005.0,64004.0,1.0693942]
[1727779196817,0.000824,64005.0,64004.0,1.18785842]
[1727779197033,0.000824,64005.0,64004.0,1.18707862]
[1727779198350,0.000824,64005.0,64004.0,1.21840862]
[1727779198987,0.000824,64005.0,64004.0,1.21040862]
[1727779199222,0.000824,64005.0,64004.0,1.21840862]
[1727779199428,0.000824,64005.0,64004.0,1.21240862]
[1727779199679,0.000824,64005.0,64004.0,1.21040862]
[1727779199890,0.000824,64005.0,64004.0,1.22440862]
[1727779200330,0.000824,64005.0,64004.0,1.21840862]
[1727779200541,0.000824,64005.0,64004.0,1.23240862]
[1727779201185,0.001648,64007.0,64006.0,0.30157591]
[1727779201410,0.001648,64007.0,64006.0,1.08903306]
[1727779201632,0.001648,64007.0,64006.0,1.20437322]
[1727779201858,0.001648,64007.0,64006.0,1.085909]
[1727779202087,0.001648,64007.0,64006.0,1.20437322]
[1727779202310,0.001648,64007.0,64006.0,1.41210655]
[1727779202533,0.001648,64007.0,64006.0,1.38632194]
[1727779202742,0.001648,64007.0,64006.0,0.87882932]
[1727779202944,0.001648,64007.0,64006.0,0.89282932]
[1727779203143,0.001648,64007.0,64006.0,0.90184023]
[1727779203644,0.175448,64007.0,64006.0,0.7038088]
[1727779203901,0.175448,64007.0,64006.0,0.67345602]
[1727779204210,0.175448,64007.0,64006.0,0.79072624]
[1727779204410,0.175448,64007.0,64006.0,0.77872624]
[1727779205301,0.175448,64007.0,64006.0,0.66145602]
[1727779205525,0.175448,64007.0,64006.0,0.64745602]
[1727779205747,0.175448,64007.0,64006.0,0.65845602]
[1727779206224,0.175448,64007.0,64006.0,0.65345602]
[1727779206453,0.175448,64007.0,64006.0,0.77192024]
[1727779206676,0.175448,64007.0,64006.0,0.77692024]
[1727779207122,0.175448,64007.0,64006.0,0.87068762]
[1727779209934,0.175448,64007.0,64006.0,0.87135526]
[1727779210566,0.175448,64007.0,64006.0,0.77760815]
[1727779212464,0.175448,64007.0,64006.0,0.84790555]
[1727779212687,0.175448,64007.0,64006.0,0.77760815]
[1727779213424,0.175448,64007.0,64006.0,0.87135526]
[1727779213658,0.175448,64007.0,64006.0,0.77760815]
[1727779214104,0.175448,64007.0,64006.0,0.89479204]
[1727779216430,0.175448,64007.0,64006.0,0.77760815]
[1727779217717,0.175448,64007.0,64006.0,0.89479204]
[1727779219684,0.175448,64007.0,64006.0,0.77760815]
[1727779219894,0.175448,64007.0,64006.0,0.7772714]
[1727779220323,0.175448,64007.0,64006.0,0.89440868]
[1727779220792,0.175448,64007.0,64006.0,0.7772714]
[1727779222339,0.001648,64007.0,64006.0,0.7772714]
[1727779224303,0.001648,64007.0,64006.0,0.89440868]
[1727779224732,0.001648,64007.0,64006.0,0.7772714]
[1727779224942,0.001648,64007.0,64006.0,0.89440532]
[1727779225570,0.001648,64007.0,64006.0,0.77727421]
[1727779226245,0.001648,64007.0,64006.0,0.89440532]
[1727779226457,0.001648,64007.0,64006.0,0.77727421]
[1727779228363,0.001648,64007.0,64006.0,0.87098039]
[1727779228784,0.001648,64007.0,64006.0,0.87107116]
[1727779231977,0.001648,64007.0,64006.0,0.77736514]
[1727779238424,0.001648,64007.0,64006.0,0.83377529]
[1727779239910,0.001648,64007.0,64006.0,0.83329563]
[1727779242662,0.001648,64007.0,64006.0,0.77688548]
[1727779243312,0.001648,64007.0,64006.0,0.83329356]
[1727779245716,0.001648,64007.0,64006.0,0.97388042]
[1727779247683,0.001648,64007.0,64006.0,0.97388042]
[1727779248331,0.001648,64007.0,64006.0,0.83329356]
[1727779249219,0.001648,64007.0,64006.0,0.84648896]
[1727779252937,0.001648,64007.0,64006.0,0.83329356]
[1727779254912,0.001648,64007.0,64006.0,0.8334343]
[1727779266451,0.001648,64007.0,64006.0,0.9237343]
[1727779273293,0.001648,64007.0,64006.0,0.92368949]
[1727779274339,0.001648,64007.0,64006.0,1.23753441]
[1727779275015,0.001648,64007.0,64006.0,1.14723441]
[1727779278295,0.001648,64007.0,64006.0,1.14745716]
[1727779282854,0.001648,64007.0,64006.0,0.75587652]
[1727779283061,0.001648,64007.0,64006.0,0.55861]
[1727779283272,0.099348,64007.0,64006.0,0.55914306]
[1727779283685,0.099348,64007.0,64006.0,0.55414306]
[1727779283895,0.100348,64007.0,64006.0,0.55414306]
[1727779284100,0.100348,64007.0,64006.0,0.54814306]
[1727779284290,0.100348,64007.0,64006.0,0.64814306]
[1727779285811,0.099348,64007.0,64006.0,0.76542957]
[1727779286017,0.099348,64007.0,64006.0,0.88389379]
[1727779286219,0.100348,64007.0,64006.0,0.88389379]
[1727779287998,0.100348,64007.0,64006.0,0.88395058]
[1727779289029,0.099348,64007.0,64006.0,0.88391553]
[1727779289649,0.099348,64007.0,64006.0,0.7666645]
[1727779289799,0.100348,64007.0,64006.0,0.7666645]
[1727779290423,0.099348,64007.0,64006.0,0.7666645]
[1727779290643,0.099348,64007.0,64006.0,0.7686645]
[1727779291074,0.099348,64007.0,64006.0,0.7716645]
[1727779291691,0.099348,64007.0,64006.0,0.86544517]
[1727779297700,0.099348,64007.0,64006.0,0.7716645]
[1727779298130,0.099348,64007.0,64006.0,0.77158244]
[1727779299176,0.001648,64007.0,64006.0,0.77158244]
[1727779299588,0.001648,64007.0,64006.0,0.88877507]
[1727779300381,0.001648,64007.0,64006.0,0.77158244]
[1727779300584,0.001648,64007.0,64006.0,0.88877507]
[1727779300795,0.001648,64007.0,64006.0,0.85408244]
[1727779301430,0.001648,64007.0,64006.0,0.77158244]
[1727779303034,0.001648,64007.0,64006.0,0.77123581]
[1727779305430,0.001648,64007.0,64006.0,0.78545361]
[1727779307920,0.001648,64007.0,64006.0,0.78549911]
[1727779308620,0.001648,64007.0,64006.0,0.78549888]
[1727779312943,0.001648,64007.0,64006.0,0.79873183]
[1727779313463,0.001648,64007.0,64006.0,1.06158203]
[1727779313702,0.001648,64007.0,64006.0,0.90782293]
[1727779313944,0.001648,64007.0,64006.0,1.06167707]
[1727779316865,0.001648,64007.0,64006.0,1.0484682]
[1727779317119,0.001648,64007.0,64006.0,1.06166333]
[1727779320035,0.001648,64007.0,64006.0,1.0484682]
[1727779320277,0.001648,64007.0,64006.0,1.0616755]
[1727779320772,0.001648,64007.0,64006.0,1.0484682]
[1727779321286,0.001648,64007.0,64006.0,1.04813391]
[1727779321512,0.001648,64007.0,64006.0,1.06134121]
[1727779325692,0.001648,64007.0,64006.0,0.96704121]
[1727779327144,0.001648,64007.0,64006.0,0.86704121]
[1727779327391,0.001648,64007.0,64006.0,0.96704121]
[1727779328747,0.001648,64007.0,64006.0,0.95383391]
[1727779329154,0.001648,64007.0,64006.0,0.96705855]
[1727779329353,0.001648,64007.0,64006.0,0.95383391]
[1727779329565,0.001648,64007.0,64006.0,0.9670613]
[1727779329771,0.001648,64007.0,64006.0,0.98028923]
[1727779330701,0.001648,64007.0,64006.0,0.93669129]
[1727779330913,0.001648,64007.0,64006.0,0.82042166]
[1727779331138,0.001648,64007.0,64006.0,0.82065902]
[1727779332080,0.001648,64007.0,64006.0,0.80743109]
[1727779332301,0.001648,64007.0,64006.0,0.82065273]
[1727779333776,0.001648,64007.0,64006.0,0.80742534]
[1727779338084,0.001648,64007.0,64006.0,0.81242534]
[1727779338316,0.001648,64007.0,64006.0,0.69396112]
[1727779338526,0.001648,64007.0,64006.0,0.81242534]
[1727779339368,0.001648,64007.0,64006.0,0.8256499]
[1727779339796,0.001648,64007.0,64006.0,0.78442826]
[1727779341020,0.001648,64007.0,64006.0,0.78467273]
[1727779342378,0.001648,64007.0,64006.0,0.78467221]
[1727779348861,0.001648,64007.0,64006.0,0.78467141]
[1727779349086,0.001648,64007.0,64006.0,0.77147391]
[1727779349715,0.001648,64007.0,64006.0,0.78469715]
[1727779351157,0.001648,64007.0,64006.0,0.7846962]
[1727779352452,0.001648,64007.0,64006.0,0.77147296]
[1727779352876,0.001648,64007.0,64006.0,0.78469605]
[1727779356188,0.001648,64007.0,64006.0,0.78470906]
[1727779359089,0.001648,64007.0,64006.0,0.77148597]
[1727779359342,0.001648,64007.0,64006.0,0.78471235]
[1727779361272,0.001648,64007.0,64006.0,0.78468877]
[1727779362695,0.001648,64007.0,64006.0,0.77146239]
[1727779363433,0.001648,64007.0,64006.0,0.7846886]
[1727779366207,0.001648,64007.0,64006.0,0.78487487]
[1727779368681,0.001648,64007.0,64006.0,0.78487487]
[1727779369129,0.001648,64007.0,64006.0,0.78488046]
[1727779369587,0.001648,64007.0,64006.0,0.77164866]
[1727779369810,0.001648,64007.0,64006.0,0.78487966]
[1727779370541,0.001648,64007.0,64006.0,0.79811066]
[1727779371288,0.001648,64007.0,64006.0,0.79815368]
[1727779373942,0.001648,64007.0,64006.0,0.78492268]
[1727779375639,0.001648,64007.0,64006.0,0.7849261]
[1727779376120,0.001648,64007.0,64006.0,0.78495807]
[1727779379267,0.001648,64007.0,64006.0,0.78495807]
[1727779381531,0.001648,64007.0,64006.0,0.77430862]
[1727779381750,0.001648,64007.0,64006.0,0.78386498]
[1727779383495,0.001648,64007.0,64006.0,0.92467096]
[1727779384381,0.001648,64007.0,64006.0,0.91143654]
[1727779384573,0.001648,64007.0,64006.0,0.77067084]
[1727779384817,0.001648,64007.0,64006.0,0.78392293]
[1727779388421,0.001648,64007.0,64006.0,0.77067084]
[1727779388647,0.001648,64007.0,64006.0,0.78392518]
[1727779389557,0.001648,64007.0,64006.0,0.78402563]
[1727779394287,0.001648,64007.0,64006.0,0.77077129]
[1727779394504,0.001648,64007.0,64006.0,0.77076688]
[1727779394717,0.001648,64007.0,64006.0,0.80026873]
[1727779398043,0.001648,64007.0,64006.0,0.80029189]
[1727779398264,0.001648,64007.0,64006.0,0.81356556]
[1727779398698,0.001648,64007.0,64006.0,0.80031047]
[1727779399592,0.001648,64007.0,64006.0,0.80035623]
[1727779401741,0.001648,64007.0,64006.0,0.68189201]
[1727779402500,0.001648,64007.0,64006.0,0.52543421]
[1727779402719,0.001648,64007.0,64006.0,0.48978722]
[1727779402720,0.172048,64007.0,64006.0,0.48978722]
[1727779403120,0.172048,64007.0,64006.0,0.17079136]
[1727779403318,0.17303709,64007.0,64006.0,0.17079136]
[1727779403527,0.17303709,64007.0,64006.0,0.16879136]
[1727779403735,0.17303709,64007.0,64006.0,0.01255636]
[1727779403943,0.17303709,64007.0,64006.0,0.00955636]
[1727779403944,0.25021892,64007.0,64006.0,0.00955636]
[1727779404566,0.40645092,64007.0,64006.0,0.00955636]
[1727779404780,0.33622409,64006.0,64005.0,0.001648]
[1727779406669,0.33722409,64006.0,64005.0,0.002648]
[1727779406887,0.33822409,64006.0,64005.0,0.003648]
[1727779410533,0.33822409,64006.0,64005.0,0.01322743]
[1727779411163,0.39495119,64006.0,64005.0,0.01322743]
[1727779412089,0.33822409,64006.0,64005.0,0.01322743]
[1727779417952,0.18198909,64006.0,64005.0,0.01322743]
[1727779418173,0.33822409,64006.0,64005.0,0.01322743]
[1727779420608,0.33904809,64006.0,64005.0,0.01322743]
[1727779426670,0.36353458,64006.0,64005.0,0.01322743]
[1727779427560,0.83224458,64006.0,64005.0,0.01322743]
[1727779431327,0.80775809,64006.0,64005.0,0.01322743]
[1727779431803,0.96320172,64006.0,64005.0,0.01322743]
[1727779432272,0.96320172,64006.0,64005.0,0.003648]
[1727779434781,0.98768934,64006.0,64005.0,0.003648]
[1727779437360,0.83224571,64006.0,64005.0,0.003648]
[1727779438282,0.83224571,64006.0,64005.0,0.01351894]
[1727779438502,0.83224571,64006.0,64005.0,0.003648]
[1727779438757,0.83224571,64006.0,64005.0,0.01351894]
[1727779439931,0.80775809,64006.0,64005.0,0.01351894]
[1727779442575,0.96420487,64006.0,64005.0,0.01351894]
[1727779443514,0.92622231,64006.0,64005.0,0.01351894]
[1727779460696,0.92622231,64006.0,64005.0,0.003648]
[1727779464393,0.92622231,64006.0,64005.0,0.01352105]
[1727779465108,0.92622231,64006.0,64005.0,0.003648]
[1727779465803,0.95070977,64006.0,64005.0,0.003648]
[1727779466249,0.95070977,64006.0,64005.0,0.01352105]
[1727779466482,0.95070977,64006.0,64005.0,0.003648]
[1727779467845,0.95070977,64006.0,64005.0,0.01352105]
[1727779468287,0.99764177,64006.0,64005.0,0.01352105]
[1727779468798,0.95070977,64006.0,64005.0,0.01352105]
[1727779469253,0.99764177,64006.0,64005.0,0.01352105]
[1727779469498,0.99764368,64006.0,64005.0,0.01352105]
[1727779469733,0.97315622,64006.0,64005.0,0.01352105]
[1727779470175,0.92622231,64006.0,64005.0,0.01352105]
[1727779470590,1.08266909,64006.0,64005.0,0.01352105]
[1727779471128,1.12960458,64006.0,64005.0,0.01352105]
[1727779473002,1.15409165,64006.0,64005.0,0.01352105]
[1727779473217,1.12960458,64006.0,64005.0,0.01352105]
[1727779473444,1.12961006,64006.0,64005.0,0.01352105]
[1727779476121,1.15409712,64006.0,64005.0,0.01352105]
[1727779477252,1.10715615,64006.0,64005.0,0.01352105]
[1727779477746,0.95070937,64006.0,64005.0,0.01352105]
[1727779480218,0.99767194,64006.0,64005.0,0.01352105]
[1727779480652,0.97318488,64006.0,64005.0,0.01352105]
[1727779481089,0.97318598,64006.0,64005.0,0.01352105]
[1727779483779,0.99767314,64006.0,64005.0,0.01352105]
[1727779484232,0.97318598,64006.0,64005.0,0.01352105]
[1727779486905,0.99767305,64006.0,64005.0,0.01352105]
[1727779490622,1.12963276,64006.0,64005.0,0.01352105]
[1727779491915,1.12963276,64006.0,64005.0,0.003648]
[1727779494049,1.15411983,64006.0,64005.0,0.003648]
[1727779494266,1.12963276,64006.0,64005.0,0.003648]
[1727779495154,0.75562176,64006.0,64005.0,0.01411436]
[1727779495359,0.75562176,64006.0,64005.0,0.003648]
[1727779495586,0.75562176,64006.0,64005.0,0.01411436]
[1727779495791,0.75562176,64006.0,64005.0,0.003648]
[1727779496007,0.75562176,64006.0,64005.0,0.01411436]
[1727779496218,0.75562176,64006.0,64005.0,0.003648]
[1727779496446,0.75562176,64006.0,64005.0,0.01411436]
[1727779496668,0.75562176,64006.0,64005.0,0.003648]
[1727779496951,0.75562176,64006.0,64005.0,0.01411436]
[1727779497168,0.78010865,64006.0,64005.0,0.01411436]
[1727779498028,0.78010865,64006.0,64005.0,0.003648]
[1727779498705,0.83028004,64006.0,64005.0,0.003648]
[1727779499137,0.78010865,64006.0,64005.0,0.003648]
[1727779500618,0.75562176,64006.0,64005.0,0.003648]
[1727779501058,0.67572176,64006.0,64005.0,0.003648]
[1727779502554,0.79418598,64006.0,64005.0,0.003648]
[1727779503866,0.81867312,64006.0,64005.0,0.003648]
[1727779504327,0.79418598,64006.0,64005.0,0.003648]
[1727779504565,0.79418598,64006.0,64005.0,0.01411436]
[1727779504780,0.79418598,64006.0,64005.0,0.003648]
[1727779505000,0.79418598,64006.0,64005.0,0.01411436]
[1727779505216,0.79418598,64006.0,64005.0,0.003648]
[1727779505464,0.79418598,64006.0,64005.0,0.01411436]
[1727779505668,0.79418598,64006.0,64005.0,0.003648]
[1727779505976,0.79418316,64006.0,64005.0,0.01411436]
[1727779506394,0.95062994,64006.0,64005.0,0.01411436]
[1727779507111,0.97511683,64006.0,64005.0,0.01411436]
[1727779507325,0.70020583,64006.0,64005.0,0.01411436]
[1727779508616,0.54397083,64006.0,64005.0,0.01411436]
[1727779508827,0.70020583,64006.0,64005.0,0.01411436]
[1727779509043,0.70020583,64006.0,64005.0,0.003648]
[1727779509277,0.70020583,64006.0,64005.0,0.01411802]
[1727779509499,0.70020583,64006.0,64005.0,0.003648]
[1727779509756,0.70020583,64006.0,64005.0,0.01411802]
[1727779510410,0.54397083,64006.0,64005.0,0.26185502]
[1727779510647,0.47252309,64006.0,64005.0,0.26185502]
[1727779511938,0.47252309,64006.0,64005.0,0.26310502]
[1727779512151,0.47152309,64006.0,64005.0,0.26210502]
[1727779512384,0.47252309,64006.0,64005.0,0.26210502]
[1727779512590,0.47152309,64006.0,64005.0,0.26110502]
[1727779513019,0.47252309,64006.0,64005.0,0.26110502]
[1727779515097,0.47252309,64006.0,64005.0,0.37956924]
[1727779515098,0.471534,64006.0,64005.0,0.37956924]
[1727779516027,0.471534,64006.0,64005.0,0.71832704]
[1727779516274,0.471534,64006.0,64005.0,0.76518947]
[1727779516525,0.471534,64006.0,64005.0,1.01119961]
[1727779516766,0.471534,64006.0,64005.0,0.94087209]
[1727779517530,0.471534,64006.0,64005.0,1.05808463]
[1727779517988,0.471534,64006.0,64005.0,0.94087209]
[1727779518229,0.470534,64006.0,64005.0,1.03451289]
[1727779518702,0.469534,64006.0,64005.0,1.03451289]
[1727779518933,0.470534,64006.0,64005.0,1.03451289]
[1727779519162,0.470534,64006.0,64005.0,0.94487209]
[1727779519385,0.469534,64006.0,64005.0,0.94487209]
[1727779519855,0.469534,64006.0,64005.0,1.04051289]
[1727779520095,0.469534,64006.0,64005.0,0.94687209]
[1727779520321,0.469534,64006.0,64005.0,1.06382126]
[1727779520558,0.469534,64006.0,64005.0,0.94687209]
[1727779520781,0.469534,64006.0,64005.0,0.94713851]
[1727779521018,0.469534,64006.0,64005.0,0.95213851]
[1727779521475,0.469534,64006.0,64005.0,1.04567526]
[1727779521477,0.469534,64006.0,64005.0,0.95213851]
[1727779521701,0.469534,64006.0,64005.0,1.04567526]
[1727779523358,0.469534,64006.0,64005.0,1.02225421]
[1727779523816,0.469534,64006.0,64005.0,0.95213851]
[1727779524254,0.469534,64006.0,64005.0,1.02225389]
[1727779524487,0.469534,64006.0,64005.0,0.79944242]
[1727779525198,0.469534,64006.0,64005.0,0.72932704]
[1727779526107,0.469534,64006.0,64005.0,0.79941635]
[1727779526339,0.469534,64006.0,64005.0,0.72932704]
[1727779527272,0.469534,64006.0,64005.0,0.77601934]
[1727779529239,0.469534,64006.0,64005.0,0.72932704]
[1727779537067,0.469534,64006.0,64005.0,0.61086282]
[1727779537287,0.469534,64006.0,64005.0,0.72932704]
[1727779537962,0.469534,64006.0,64005.0,0.79192304]
[1727779548191,0.469534,64006.0,64005.0,0.8385781]
[1727779550203,0.469534,64006.0,64005.0,0.79192304]
[1727779551377,0.469534,64006.0,64005.0,1.14078646]
[1727779552274,0.469534,64006.0,64005.0,1.07080386]
[1727779553367,0.469534,64006.0,64005.0,1.16411399]
[1727779554299,0.469534,64006.0,64005.0,1.07080386]
[1727779554733,0.469534,64006.0,64005.0,0.95233964]
[1727779556965,0.469534,64006.0,64005.0,0.98880667]
[1727779560372,0.469534,64006.0,64005.0,1.12968879]
[1727779561277,0.469534,64006.0,64005.0,0.98913075]
[1727779564870,0.469534,64006.0,64005.0,1.30150623]
[1727779565126,0.469534,64006.0,64005.0,0.37370373]
[1727779565349,0.469534,64006.0,64005.0,0.53869723]
[1727779565789,0.469534,64006.0,64005.0,0.65716145]
[1727779568753,0.469534,64006.0,64005.0,0.65717978]
[1727779569201,0.469534,64006.0,64005.0,0.6571779]
[1727779569889,0.469534,64006.0,64005.0,0.53991552]
[1727779572567,0.469534,64006.0,64005.0,0.6588259]
[1727779572839,0.469534,64006.0,64005.0,0.54156352]
[1727779575593,0.469534,64006.0,64005.0,0.59749538]
[1727779580054,0.469534,64006.0,64005.0,0.81614118]
[1727779583875,0.469534,64006.0,64005.0,0.69767696]
[1727779584099,0.469534,64006.0,64005.0,0.81614118]
[1727779585472,0.469534,64006.0,64005.0,0.83236891]
[1727779586179,0.469534,64006.0,64005.0,0.85536891]
[1727779586402,0.469534,64006.0,64005.0,1.16144498]
[1727779587137,0.469534,64006.0,64005.0,1.14521725]
[1727779587359,0.469534,64006.0,64005.0,1.16145145]
[1727779587592,0.469534,64006.0,64005.0,0.85537538]
[1727779587803,0.469534,64006.0,64005.0,1.16145145]
[1727779588021,0.469534,64006.0,64005.0,0.85537538]
[1727779588234,0.469534,64006.0,64005.0,1.16145145]
[1727779588451,0.469534,64006.0,64005.0,0.85498354]
[1727779590443,0.469534,64006.0,64005.0,0.86298354]
[1727779591334,0.469534,64006.0,64005.0,0.86286624]
[1727779592420,0.469534,64006.0,64005.0,0.87286624]
[1727779593799,0.469534,64006.0,64005.0,0.87282796]
[1727779594036,0.469534,64006.0,64005.0,0.85663204]
[1727779594259,0.469534,64006.0,64005.0,0.87282796]
[1727779594733,0.313299,64006.0,64005.0,0.9012961]
[1727779594971,0.188311,64006.0,64005.0,1.82183072]
[1727779595198,0.157064,64006.0,64005.0,1.8056348]
[1727779595425,0.157888,64006.0,64005.0,1.82178176]
[1727779595657,0.157888,64006.0,64005.0,1.67913037]
[1727779595879,0.157888,64006.0,64005.0,1.81978176]
[1727779596554,0.0974,64020.0,64013.0,0.123]
[1727779596784,0.2352502,64019.0,64014.0,0.79156059]
[1727779597014,0.0004,64019.0,64014.0,0.77227368]
[1727779597250,0.0004,64019.0,64014.0,0.78841543]
[1727779599439,0.0004,64019.0,64014.0,0.91549436]
[1727779600372,0.0004,64019.0,64014.0,0.79841543]
[1727779600591,0.0004,64019.0,64014.0,0.91543781]
[1727779601031,0.0004,64019.0,64014.0,0.92343781]
[1727779601291,0.0004,64019.0,64014.0,0.80641543]
[1727779601762,0.0004,64019.0,64014.0,0.9234152]
[1727779603608,0.0004,64019.0,64014.0,0.9254152]
[1727779603836,0.0004,64019.0,64014.0,0.80842397]
[1727779604060,0.0004,64019.0,64018.0,0.39767022]
[1727779604279,0.0004,64019.0,64018.0,0.77226468]
[1727779604495,0.0004,64019.0,64018.0,0.78841497]
[1727779604721,0.0004,64019.0,64018.0,0.78834877]
[1727779604993,0.0004,64019.0,64018.0,0.90526]
[1727779606342,0.0004,64019.0,64018.0,0.91126]
[1727779606553,0.0004,64019.0,64018.0,0.79434877]
[1727779606767,0.0004,64019.0,64018.0,0.79834877]
[1727779607685,0.001224,64019.0,64018.0,0.79834877]
[1727779608152,0.001224,64019.0,64018.0,0.79639193]
[1727779610400,0.001224,64019.0,64018.0,0.78030784]
[1727779610819,0.001224,64019.0,64018.0,0.7963937]
[1727779612530,0.001224,64019.0,64018.0,0.9132194]